bitfinex/quotes_SOLUSD_20250305
["timestamp","ask_amount","ask_price","bid_price","bid_amount"]
[1741204683355,0.28432314,145.47,145.41,0.033]
[1741204686338,88.36427162,145.48,145.41,0.033]
[1741204686738,90.16907842,145.48,145.41,0.033]
[1741204688752,0.28432314,145.47,145.41,0.033]
[1741204688949,2.08923692,145.47,145.41,0.033]
[1741204689334,82.47440854,145.47,145.41,0.033]
[1741204691667,0.42648471,145.46,145.41,0.033]
[1741204691957,0.14216157,145.43,145.41,0.033]
[1741204692162,0.28432314,145.42,145.41,0.033]
[1741204692663,80.38517162,145.43,145.41,0.033]
[1741204694757,0.28432314,145.42,145.41,0.033]
[1741204694946,87.5103179,145.42,145.41,0.033]
[1741204695152,0.28432314,145.4,145.35,0.033]
[1741204696173,80.01736496,145.41,145.35,0.033]
[1741204696382,80.01736496,145.41,145.35,6.9128]
[1741204698256,6.5565,145.42,145.35,87.8128]
[1741204698964,80.01736496,145.44,145.36,25.52884886]
[1741204699162,81.68376496,145.44,145.36,106.42884886]
[1741204700380,2.23201654,145.43,145.36,80.9]
[1741204700583,0.14216157,145.42,145.36,80.9]
[1741204700782,0.42648471,145.4,145.35,0.033]
[1741204701085,86.58974967,145.4,145.35,0.033]
[1741204701268,1.5757,145.39,145.35,0.033]
[1741204701585,0.42648471,145.38,145.35,0.033]
[1741204703176,1.5757,145.39,145.35,0.033]
[1741204706865,0.42648471,145.38,145.35,0.033]
[1741204707055,81.82358135,145.37,145.35,0.033]
[1741204707478,0.56864628,145.36,145.31,0.03]
[1741204707672,0.42648471,145.34,145.31,0.03]
[1741204707868,3.32776251,145.33,145.31,0.03]
[1741204708081,83.34512747,145.33,145.31,0.03]
[1741204708798,0.56864628,145.32,145.28,0.03]
[1741204709098,0.56864628,145.3,145.28,0.03]
[1741204709275,2.23384165,145.29,145.28,0.03]
[1741204709587,82.39336818,145.29,145.28,0.03]
[1741204709971,0.42648471,145.28,145.27,0.033]
[1741204711761,80.01736496,145.28,145.27,0.033]
[1741204713469,80.15952653,145.28,145.27,0.033]
[1741204713785,80.3016881,145.28,145.27,0.033]
[1741204713964,80.3016881,145.28,145.24,0.03]
[1741204714163,1.94980775,145.27,145.24,0.03]
[1741204714786,1.6066,145.26,145.24,0.03]
[1741204715491,81.62396496,145.26,145.24,0.03]
[1741204717705,1.94991983,145.25,145.24,0.03]
[1741204719372,82.10944636,145.25,145.24,0.03]
[1741204719869,82.3937695,145.25,145.24,0.03]
[1741204720578,82.25160793,145.25,145.24,0.03]
[1741204720774,82.3937695,145.25,145.24,0.03]
[1741204722493,82.3937695,145.25,145.21,0.033]
[1741204722691,80.44384967,145.24,145.21,0.033]
[1741204722892,1.8081349,145.23,145.21,0.033]
[1741204723697,80.44384967,145.24,145.21,0.033]
[1741204725094,1.80804722,145.23,145.21,0.033]
[1741204725595,80.15952653,145.22,145.2,0.033]
[1741204725909,0.14216157,145.2,145.19,0.03]
[1741204726396,0.28432314,145.2,145.19,0.03]
[1741204726770,0.14216157,145.2,145.19,0.03]
[1741204726973,0.28432314,145.2,145.19,0.03]
[1741204727772,81.82578954,145.21,145.19,0.03]
[1741204731795,80.3016881,145.2,145.19,0.03]
[1741204731998,83.83938049,145.2,145.19,0.03]
[1741204732298,3.82201553,145.2,145.19,0.03]
[1741204733899,0.14216157,145.19,145.17,0.03]
[1741204734087,81.0,145.18,145.17,0.03]
[1741204736996,81.0,145.21,145.17,0.03]
[1741204739414,81.033,145.21,145.17,0.03]
[1741204740295,2.0926908,145.2,145.17,0.03]
[1741204742815,81.0,145.19,145.17,0.03]
[1741204746629,81.0,145.18,145.17,0.03]
[1741204746928,82.9508181,145.18,145.16,0.03]
[1741204747115,81.14216157,145.17,145.13,0.03]
[1741204747326,82.80900914,145.16,145.13,0.03]
[1741204749618,0.14216157,145.15,145.13,0.03]
[1741204750321,81.42648471,145.14,145.13,0.03]
[1741204751416,81.14216157,145.14,145.13,0.03]
[1741204751595,81.0,145.14,145.13,0.03]
[1741204751998,3.35281331,145.18,145.13,0.03]
[1741204751999,0.14216157,145.16,145.13,0.03]
[1741204752620,2.37754477,145.16,145.13,0.03]
[1741204757001,0.14216157,145.14,145.13,0.03]
[1741204757196,1.95154194,145.14,145.12,0.03]
[1741204757729,1.95154194,145.14,145.11,0.03]
[1741204758325,99.64964886,145.13,145.11,0.03]
[1741204758510,1.80961207,145.12,145.11,0.03]
[1741204759115,82.80963959,145.13,145.11,0.03]
[1741204759432,3.5436,145.18,145.11,0.03]
[1741204759433,81.0,145.17,145.11,0.03]
[1741204759722,1.80884066,145.16,145.11,0.03]
[1741204759900,0.14216157,145.15,145.11,0.03]
[1741204760097,1.80917161,145.14,145.11,0.03]
[1741204760297,82.80917161,145.14,145.11,0.03]
[1741204760722,0.14216157,145.13,145.11,0.03]
[1741204763207,81.0,145.14,145.11,0.03]
[1741204763625,0.28432314,145.16,145.11,0.03]
[1741204763815,2.09345306,145.16,145.11,0.03]
[1741204764931,0.033,145.14,145.11,0.03]
[1741204765706,1.84202533,145.14,145.11,0.03]
[1741204767327,0.42648471,145.13,145.11,0.03]
[1741204768706,0.28432314,145.13,145.11,0.03]
[1741204769335,0.14216157,145.12,145.11,0.03]
[1741204769935,81.0,145.13,145.11,0.03]
[1741204773017,0.033,145.14,145.11,0.03]
[1741204776028,25.10044886,145.19,145.11,0.03]
[1741204776029,0.033,145.2,145.15,19.21829514]
[1741204776342,0.033,145.2,145.17,11.97089026]
[1741204776639,0.033,145.2,145.17,80.9]
[1741204777039,0.033,145.2,145.19,312.0]
[1741204777836,0.033,145.2,145.19,554.96331043]
[1741204778133,0.033,145.2,145.19,257.0196854]
[1741204778639,0.033,145.2,145.19,270.6063708]
[1741204781021,0.033,145.2,145.19,582.6063708]
[1741204781219,0.033,145.2,145.19,400.9305]
[1741204781433,0.033,145.2,145.19,88.9305]
[1741204784013,0.033,145.2,145.19,95.818]
[1741204784435,0.033,145.2,145.19,426.46764886]
[1741204787253,0.033,145.2,145.19,445.27988609]
[1741204787558,0.033,145.2,145.19,270.6063708]
[1741204788246,0.033,145.2,145.19,270.17988609]
[1741204788833,0.033,145.2,145.19,251.50981043]
[1741204789460,0.033,145.2,145.19,251.36764886]
[1741204789623,0.033,145.2,145.19,244.48014886]
[1741204789951,0.033,145.2,145.19,225.8305]
[1741204790127,0.033,145.2,145.19,87.2715]
[1741204790529,0.033,145.2,145.19,80.9]
[1741204791453,0.033,145.2,145.16,80.9]
[1741204791640,0.033,145.2,145.15,7.6948]
[1741204791641,0.033,145.2,145.14,99.54964886]
[1741204791841,0.033,145.2,145.14,80.9]
[1741204794563,0.17516157,145.2,145.14,80.9]
[1741204795379,81.42648471,145.19,145.13,111.86]
[1741204795669,1.507,145.18,145.13,111.86]
[1741204797471,81.0,145.19,145.13,118.7502]
[1741204797652,81.0,145.19,145.13,6.8902]
[1741204798241,81.0,145.19,145.13,318.8902]
[1741204799085,0.033,145.2,145.13,399.7902]
[1741204799971,0.033,145.2,145.13,418.46027566]
[1741204800539,0.033,145.2,145.14,18.67007566]
[1741204800750,0.033,145.2,145.14,20.29607566]
[1741204801163,0.033,145.2,145.16,18.67007566]
[1741204801476,0.033,145.2,145.17,6.8884]
[1741204801995,0.033,145.2,145.16,6.8888]
[1741204802172,0.033,145.2,145.17,18.64964886]
[1741204802671,0.033,145.2,145.17,99.54964886]
[1741204802877,0.033,145.2,145.18,0.56864628]
[1741204803171,0.033,145.2,145.19,37.8883708]
[1741204803380,0.033,145.2,145.19,45.46576288]
[1741204803871,0.033,145.2,145.19,357.46576288]
[1741204804071,0.033,145.2,145.19,330.64964886]
[1741204804642,0.033,145.2,145.19,356.7758708]
[1741204804958,0.033,145.2,145.19,281.24594646]
[1741204805152,0.033,145.2,145.19,262.5758708]
[1741204805366,0.033,145.2,145.19,255.6883708]
[1741204805757,0.033,145.2,145.19,262.5758708]
[1741204805963,0.033,145.2,145.19,281.24594646]
[1741204806164,0.033,145.2,145.19,262.5758708]
[1741204806360,0.033,145.28,145.24,0.56864628]
[1741204806570,0.033,145.28,145.27,18.67007566]
[1741204806765,0.033,145.28,145.27,80.9]
[1741204807388,0.033,145.28,145.24,80.9]
[1741204807872,0.033,145.28,145.25,18.64964886]
[1741204808066,0.033,145.28,145.24,392.9]
[1741204809298,0.033,145.28,145.25,38.15136595]
[1741204809596,0.033,145.28,145.27,18.64964886]
[1741204809787,0.033,145.28,145.27,256.3767596]
[1741204809985,0.033,145.28,145.27,255.26188609]
[1741204810172,0.033,145.28,145.27,255.6883708]
[1741204810371,0.033,145.35,145.28,71.21829514]
[1741204810682,0.033,145.35,145.34,37.46188609]
[1741204810879,0.033,145.35,145.34,237.27825231]
[1741204811065,0.033,145.35,145.34,255.26188609]
[1741204811266,0.033,145.35,145.34,255.6883708]
[1741204811494,0.033,145.35,145.34,237.01829514]
[1741204811688,0.033,145.35,145.34,255.6883708]
[1741204812201,0.033,145.35,145.34,567.6883708]
[1741204812508,0.033,145.35,145.34,574.5687708]
[1741204812797,0.03,145.42,145.41,0.14216157]
[1741204813106,0.03,145.42,145.41,237.13462877]
[1741204813310,0.03,145.42,145.41,217.8]
[1741204814300,0.03,145.42,145.41,236.44964886]
[1741204814514,0.03,145.42,145.41,236.59181043]
[1741204816289,0.03,145.42,145.41,548.59181043]
[1741204816490,0.03,145.42,145.41,578.81368846]
[1741204817200,0.03,145.42,145.41,273.69078846]
[1741204817386,0.03,145.42,145.41,282.07208846]
[1741204817582,0.033,145.43,145.41,282.07208846]
[1741204817800,0.033,145.43,145.42,49.69712536]
[1741204818098,0.03,145.47,145.46,0.14216157]
[1741204818401,0.03,145.47,145.46,111.52118691]
[1741204818582,0.03,145.47,145.46,130.17083577]
[1741204818779,0.03,145.47,145.46,100.80192716]
[1741204819005,0.03,145.47,145.46,130.59732048]
[1741204819882,0.03,145.47,145.46,267.49732048]
[1741204820085,0.03,145.47,145.46,578.81368846]
[1741204820284,0.03,145.47,145.46,549.01829514]
[1741204820896,0.03,145.47,145.46,585.68838846]
[1741204822596,0.03,145.49,145.47,2.0]
[1741204822801,0.03,145.49,145.48,56.05595282]
[1741204824379,0.03,145.49,145.48,237.13191322]
[1741204824723,0.03,145.49,145.48,236.59181043]
[1741204825025,0.03,145.49,145.48,236.44964886]
[1741204826908,0.03,145.49,145.44,80.9]
[1741204829232,1.6404,145.47,145.42,80.9]
[1741204829402,1.6404,145.47,145.41,0.03]
[1741204831119,82.80514217,145.46,145.41,0.03]
[1741204831414,81.14216157,145.45,145.41,0.03]
[1741204831620,82.80555841,145.44,145.41,0.03]
[1741204832009,6.69252314,145.42,145.41,0.03]
[1741204834421,6.83468471,145.42,145.41,0.03]
[1741204834615,1.5179,145.41,145.35,192.56]
[1741204835020,83.09014899,145.4,145.31,80.9]
[1741204835323,0.14216157,145.38,145.31,80.9]
[1741204835516,81.14216157,145.38,145.31,80.9]
[1741204835710,81.0,145.38,145.31,80.9]
[1741204835926,82.5179,145.41,145.31,224.6817]
[1741204836313,82.5179,145.41,145.32,18.64964886]
[1741204837053,82.5179,145.41,145.32,25.53084886]
[1741204837530,1.5179,145.41,145.34,18.64964886]
[1741204837730,1.5179,145.41,145.34,266.24504218]
[1741204837935,1.5179,145.41,145.34,578.24504218]
[1741204838320,1.5179,145.41,145.36,48.44504218]
[1741204838629,1.5645,145.45,145.38,48.44504218]
[1741204838924,1.5645,145.45,145.38,236.44964886]
[1741204839127,1.5645,145.45,145.38,243.32774886]
[1741204839320,1.5645,145.45,145.4,18.64964886]
[1741204839506,0.033,145.47,145.4,18.64964886]
[1741204839507,0.033,145.47,145.4,48.44504218]
[1741204840125,0.033,145.47,145.41,30.48046179]
[1741204840335,0.033,145.47,145.42,48.44504218]
[1741204840629,0.033,145.47,145.44,18.64964886]
[1741204840824,0.033,145.47,145.44,236.44964886]
[1741204841325,0.033,145.47,145.45,7.5594555]
[1741204841524,0.033,145.47,145.46,18.64964886]
[1741204841724,0.033,145.47,145.44,80.9]
[1741204844342,0.033,145.47,145.45,18.64964886]
[1741204845012,0.033,145.47,145.45,129.34504218]
[1741204845216,0.033,145.47,145.46,56.43035607]
[1741204845618,0.033,145.47,145.46,26.63496275]
[1741204845821,0.033,145.47,145.46,56.43035607]
[1741204846429,0.033,145.47,145.46,274.37251764]
[1741204846640,0.033,145.47,145.46,273.68838846]
[1741204847439,0.033,145.47,145.46,266.67152689]
[1741204847652,0.033,145.47,145.46,99.54964886]
[1741204852640,0.033,145.47,145.46,80.9]
[1741204854556,0.033,145.47,145.43,18.64964886]
[1741204854923,0.033,145.47,145.42,80.9]
[1741204861146,81.033,145.47,145.41,0.03]
[1741204861538,81.033,145.47,145.39,80.85886944]
[1741204861735,82.83817329,145.47,145.39,80.85886944]
[1741204862153,0.42648471,145.46,145.39,80.85886944]
[1741204862832,0.14216157,145.46,145.39,80.85886944]
[1741204863555,0.28432314,145.46,145.39,80.85886944]
[1741204864558,82.98033486,145.47,145.39,80.85886944]
[1741204864757,81.17516157,145.47,145.39,80.85886944]
[1741204865256,81.033,145.47,145.39,80.85886944]
[1741204865443,81.033,145.47,145.4,18.64964886]
[1741204866372,0.033,145.47,145.4,255.03357722]
[1741204866547,0.033,145.47,145.42,18.64964886]
[1741204866754,0.033,145.47,145.43,6.8761]
[1741204866952,0.033,145.47,145.44,18.64964886]
[1741204867144,0.033,145.47,145.44,99.5085183]
[1741204868247,0.033,145.47,145.44,392.85886944]
[1741204868562,0.033,145.47,145.44,80.85886944]
[1741204869864,0.033,145.47,145.45,18.64964886]
[1741204870058,0.033,145.47,145.46,18.62505892]
[1741204870247,0.033,145.47,145.46,37.70119249]
[1741204870571,0.033,145.47,145.46,255.6022235]
[1741204870868,0.033,145.47,145.46,262.4769235]
[1741204871452,0.033,145.47,145.46,574.4769235]
[1741204872569,0.033,145.47,145.46,585.60549318]
[1741204873663,0.03,145.49,145.47,19.21829514]
[1741204873870,0.03,145.49,145.48,56.01434652]
[1741204874352,0.0001,145.49,145.48,62.06244652]
[1741204875345,0.0001,145.49,145.48,68.93614652]
[1741204875870,0.0001,145.49,145.48,244.01958736]
[1741204876072,0.0001,145.49,145.48,243.33716458]
[1741204876670,0.0001,145.49,145.48,250.21086458]
[1741204876858,0.0001,145.49,145.48,562.21086458]
[1741204877081,0.0001,145.49,145.48,99.5085183]
[1741204877764,0.0001,145.49,145.48,80.85886944]
[1741204877967,0.0001,145.49,145.44,80.85886944]
[1741204878169,0.0001,145.49,145.45,18.64964886]
[1741204878654,0.0001,145.49,145.42,80.85886944]
[1741204879170,0.0001,145.49,145.43,18.64964886]
[1741204879350,0.0001,145.49,145.43,99.5085183]
[1741204880570,0.0001,145.49,145.43,106.3845183]
[1741204880777,0.0001,145.49,145.43,99.5085183]
[1741204884889,81.0,145.48,145.39,80.85886944]
[1741204885266,81.0,145.48,145.4,18.64964886]
[1741204885754,81.14216157,145.47,145.39,80.85886944]
[1741204887376,8.38236157,145.45,145.39,80.85886944]
[1741204887577,89.38236157,145.45,145.38,0.03]
[1741204887779,89.2402,145.45,145.38,0.03]
[1741204888290,89.2402,145.45,145.43,0.03]
[1741204890103,1.6185,145.45,145.43,0.03]
[1741204890283,7.6744,145.49,145.44,18.64964886]
[1741204890593,7.6744,145.49,145.44,99.54964886]
[1741204890892,0.0001,145.49,145.46,18.64964886]
[1741204891094,0.0001,145.49,145.46,266.88737522]
[1741204891272,0.0001,145.49,145.48,48.82976217]
[1741204891478,0.0001,145.49,145.48,266.62976217]
[1741204891692,0.0001,145.49,145.48,273.50346217]
[1741204892485,0.0001,145.49,145.48,243.74983357]
[1741204893073,0.0001,145.49,145.48,585.50346217]
[1741204893608,0.0001,145.49,145.48,585.64562374]
[1741204893898,0.0001,145.49,145.48,578.62976217]
[1741204894285,0.0001,145.49,145.48,585.50346217]
[1741204894489,0.0001,145.49,145.48,585.64562374]
[1741204894681,0.0001,145.49,145.48,273.64562374]
[1741204895302,0.03,145.57,145.51,19.21829514]
[1741204895502,0.03,145.57,145.51,273.81357202]
[1741204895687,0.03,145.57,145.51,273.13192374]
[1741204895894,0.03,145.57,145.51,280.00422374]
[1741204897726,0.03,145.57,145.51,592.00422374]
[1741204899528,0.03,145.57,145.51,548.44964886]
[1741204899813,0.03,145.57,145.51,236.44964886]
[1741204900015,0.03,145.57,145.51,236.87613357]
[1741204900392,0.03,145.57,145.51,236.44964886]
[1741204900589,0.03,145.57,145.51,236.733972]
[1741204900788,0.03,145.57,145.51,236.59181043]
[1741204900991,0.03,145.57,145.51,236.87613357]
[1741204901608,0.03,145.57,145.51,217.8]
[1741204902413,0.03,145.57,145.51,236.44964886]
[1741204902711,0.03,145.57,145.51,236.87613357]
[1741204903412,0.03,145.57,145.51,236.44964886]
[1741204903813,0.03,145.57,145.51,217.8]
[1741204904313,0.03,145.57,145.51,80.9]
[1741204905013,0.03,145.57,145.51,106.42194886]
[1741204905311,0.03,145.57,145.51,99.54964886]
[1741204906004,0.03,145.57,145.51,80.9]
[1741204906189,0.03,145.57,145.51,117.95241331]
[1741204906394,0.03,145.57,145.51,136.60206217]
[1741204906594,0.03,145.57,145.51,106.84843357]
[1741204907895,0.03,145.57,145.51,80.9]
[1741204908900,0.03,145.57,145.49,236.44964886]
[1741204909097,0.03,145.57,145.49,217.8]
[1741204909418,1.5319,145.53,145.49,80.9]
[1741204911135,1.5319,145.53,145.5,18.64964886]
[1741204911807,1.5319,145.53,145.49,80.9]
[1741204912729,1.5319,145.53,145.49,80.933]
[1741204915126,1.5319,145.53,145.49,87.8061]
[1741204916624,1.5319,145.53,145.49,80.933]
[1741204920609,1.5377,145.56,145.5,18.64964886]
[1741204920825,1.5377,145.56,145.51,0.56864628]
[1741204921441,1.5377,145.56,145.5,217.8]
[1741204922241,1.5377,145.56,145.5,224.6727]
[1741204922437,1.5377,145.56,145.51,19.90110307]
[1741204922804,1.5377,145.56,145.51,19.7589415]
[1741204923811,1.5377,145.56,145.51,331.7589415]
[1741204924015,1.5377,145.56,145.5,217.8]
[1741204924213,1.5377,145.56,145.51,18.64964886]
[1741204925415,1.5377,145.56,145.51,25.52194886]
[1741204926228,1.5377,145.56,145.51,26.77323877]
[1741204926540,0.03,145.57,145.51,274.33539856]
[1741204926712,0.03,145.57,145.51,280.01275493]
[1741204927112,0.03,145.57,145.51,592.01275493]
[1741204927633,0.0001,145.52,145.51,280.01275493]
[1741204928230,0.03,145.57,145.51,309.77491472]
[1741204928407,0.03,145.57,145.56,48.98045493]
[1741204928408,0.0001,145.57,145.56,48.98045493]
[1741204928611,0.03,145.58,145.57,19.21829514]
[1741204928612,0.0001,145.58,145.57,19.21829514]
[1741204928833,0.0001,145.58,145.57,48.98045493]
[1741204929947,0.0001,145.58,145.57,56.53021065]
[1741204930110,0.0001,145.58,145.57,49.66071065]
[1741204930613,0.0001,145.58,145.57,361.66071065]
[1741204930814,0.0001,145.58,145.57,367.84995493]
[1741204932524,0.0001,145.58,145.57,574.45328773]
[1741204932729,1.5358,145.67,145.61,19.21829514]
[1741204932932,1.5358,145.67,145.61,125.72300177]
[1741204933135,1.5358,145.67,145.61,107.15750918]
[1741204936222,1.5358,145.67,145.61,244.05750918]
[1741204936422,1.5358,145.67,145.61,242.80964886]
[1741204936644,1.5358,145.67,145.61,236.44964886]
[1741204936853,1.5358,145.67,145.61,243.601572]
[1741204937061,1.5358,145.67,145.61,574.16706459]
[1741204937226,1.5358,145.67,145.61,574.45138773]
[1741204937557,1.5358,145.67,145.61,555.88589514]
[1741204939265,1.5358,145.67,145.61,574.45138773]
[1741204940264,1.5358,145.67,145.61,555.88589514]
[1741204940556,1.5358,145.67,145.61,549.01829514]
[1741204941055,1.5358,145.67,145.61,574.45138773]
[1741204941261,1.5358,145.67,145.61,555.88589514]
[1741204941440,1.5358,145.67,145.61,549.01829514]
[1741204942424,1.5358,145.67,145.61,567.58378773]
[1741204942626,1.5358,145.67,145.61,262.45138773]
[1741204942821,8.0948,145.72,145.61,262.45138773]
[1741204943051,8.0948,145.72,145.65,18.64964886]
[1741204943264,8.0948,145.72,145.68,18.64964886]
[1741204943547,8.0948,145.72,145.68,99.54964886]
[1741204943757,1.6209,145.72,145.7,18.64964886]
[1741204944237,8.0948,145.76,145.7,236.44964886]
[1741204944837,0.03,145.77,145.73,19.13413887]
[1741204945033,0.03,145.77,145.74,18.64964886]
[1741204945225,0.03,145.77,145.76,37.78378773]
[1741204945650,0.03,145.77,145.76,349.78378773]
[1741204945845,0.03,145.77,145.76,368.34928032]
[1741204946031,26.04011771,145.81,145.79,20.0]
[1741204946232,85.02277443,145.86,145.82,20.0]
[1741204946233,10.70170709,145.86,145.82,20.0]
[1741204946432,10.70170709,145.86,145.85,19.21829514]
[1741204946650,10.70170709,145.86,145.83,7.01438672]
[1741204946857,10.70170709,145.86,145.84,19.21829514]
[1741204947036,10.70170709,145.86,145.85,48.83573305]
[1741204947547,10.70170709,145.86,145.85,49.50948156]
[1741204948128,10.70170709,145.86,145.85,19.21829514]
[1741204948324,10.70170709,145.86,145.85,19.07613357]
[1741204948627,10.70170709,145.86,145.85,19.21829514]
[1741204948829,10.70170709,145.86,145.85,19.07613357]
[1741204949041,10.70170709,145.86,145.85,18.64964886]
[1741204949240,85.02277443,145.92,145.85,18.64964886]
[1741204949241,83.0,145.95,145.85,312.0]
[1741204949440,1.5969,145.9,145.84,35.72974543]
[1741204950133,1.5969,145.9,145.85,18.64964886]
[1741204950328,1.5969,145.9,145.85,0.56864628]
[1741204950535,81.0,145.94,145.87,18.64964886]
[1741204950852,1.6318,145.95,145.87,18.64964886]
[1741204951370,60.58318318,145.98,145.87,18.64964886]
[1741204952035,2.36752486,145.97,145.86,18.64964886]
[1741204952446,62.95070804,145.97,145.87,18.64964886]
[1741204952732,0.56864628,145.95,145.81,29.61743791]
[1741204952935,61.15182946,145.95,145.83,0.28432314]
[1741204953239,64.38245982,145.95,145.82,6.34]
[1741204953450,60.58318318,145.95,145.84,18.64964886]
[1741204954162,0.56864628,145.92,145.82,6.34]
[1741204954355,1.605,145.91,145.82,6.34]
[1741204954959,20.5916843,145.9,145.82,6.34]
[1741204955260,3.94203544,145.9,145.82,6.34]
[1741204955632,0.14216157,145.88,145.78,123.86038628]
[1741204955950,0.14216157,145.88,145.78,80.9]
[1741204955951,6.4486,145.87,145.78,80.9]
[1741204956760,6.4486,145.87,145.79,18.64964886]
[1741204957648,67.03178318,145.87,145.78,80.9]
[1741204958239,67.03178318,145.87,145.79,18.64964886]
[1741204959846,6.4486,145.87,145.81,18.64964886]
[1741204960856,6.4486,145.87,145.8,0.28432314]
[1741204961246,6.4486,145.87,145.8,18.933972]
[1741204962270,6.4486,145.87,145.79,0.28432314]
[1741204962650,6.4486,145.87,145.79,18.933972]
[1741204964078,6.4486,145.87,145.79,330.933972]
[1741204964279,6.4486,145.87,145.79,18.933972]
[1741204964761,6.4486,145.87,145.79,0.28432314]
[1741204964959,6.4486,145.87,145.79,19.60969057]
[1741204965559,6.4486,145.87,145.79,18.933972]
[1741204965761,6.4486,145.87,145.79,99.833972]
[1741204965957,6.4486,145.87,145.79,80.9]
[1741204970576,1.5449,145.86,145.79,80.9]
[1741204970955,0.56864628,145.85,145.78,0.033]
[1741204971155,62.12808318,145.86,145.78,18.68264886]
[1741204971573,1.5449,145.86,145.78,106.44214886]
[1741204971767,1.5449,145.86,145.79,0.28432314]
[1741204971968,1.5449,145.86,145.8,18.64964886]
[1741204973280,1.5449,145.86,145.78,529.833]
[1741204973577,1.5449,145.86,145.79,18.64964886]
[1741204973767,1.5449,145.86,145.78,217.833]
[1741204975176,1.5449,145.86,145.78,80.933]
[1741204975380,3.34504653,145.86,145.78,80.933]
[1741204976182,0.28432314,145.85,145.78,80.933]
[1741204976363,3.34504653,145.86,145.78,80.933]
[1741204977071,0.28432314,145.85,145.78,80.933]
[1741204978163,1.5449,145.86,145.78,80.933]
[1741204980380,0.42648471,145.85,145.78,80.933]
[1741204980591,2.22696579,145.85,145.78,0.033]
[1741204980792,0.42648471,145.85,145.78,0.033]
[1741204981363,1.5449,145.86,145.78,0.033]
[1741204981565,2.22681646,145.85,145.78,0.033]
[1741204981772,0.42648471,145.85,145.78,0.033]
[1741204981990,0.42648471,145.83,145.78,0.033]
[1741204982570,1.6245,145.82,145.78,0.033]
[1741204982978,6.0428,145.8,145.72,80.9]
[1741204983183,66.62598318,145.8,145.72,80.9]
[1741204983784,1.6166,145.78,145.7,80.9]
[1741204983967,3.41801366,145.78,145.7,80.9]
[1741204984373,61.15182946,145.77,145.69,111.4]
[1741204984588,6.1549,145.76,145.69,111.4]
[1741204984791,6.1549,145.76,145.67,18.64964886]
[1741204986293,6.1549,145.76,145.66,529.8]
[1741204986505,66.73808318,145.76,145.66,399.7651]
[1741204987277,66.73808318,145.76,145.66,392.9]
[1741204987603,66.73808318,145.76,145.68,0.28432314]
[1741204987971,66.73808318,145.76,145.67,18.64964886]
[1741204988587,66.73808318,145.76,145.66,80.9]
[1741204988798,1.6107,145.74,145.66,80.9]
[1741204989204,0.14216157,145.73,145.66,56.99780414]
[1741204989407,60.72534475,145.73,145.64,57.03080414]
[1741204989586,6.4586,145.72,145.64,57.03080414]
[1741204989780,6.4586,145.72,145.64,63.89700414]
[1741204990399,6.4586,145.72,145.65,18.64964886]
[1741204990902,6.4586,145.72,145.65,330.64964886]
[1741204991102,6.4586,145.72,145.66,0.28432314]
[1741204991311,6.4586,145.72,145.67,18.64964886]
[1741204991510,1.6107,145.74,145.68,0.28432314]
[1741204991679,1.6107,145.74,145.67,19.32804384]
[1741204991877,1.6107,145.74,145.67,18.64964886]
[1741204992596,1.6107,145.74,145.66,200.76300414]
[1741204993277,1.6107,145.74,145.66,193.89780414]
[1741204993475,1.6107,145.74,145.66,200.76300414]
[1741204994288,1.6107,145.74,145.66,512.76300414]
[1741204994487,62.19388318,145.74,145.66,368.99780414]
[1741204994679,62.19388318,145.74,145.66,56.99780414]
[1741204998512,62.19388318,145.74,145.67,25.51404886]